[Event "NJSK 2023 Jeugd C"]
[Site "Almelo, Netherlands"]
[Date "2023.05.02"]
[Round "3.10"]
[White "Aravindhan, Achyuth"]
[Black "Frederiks, Jesse"]
[Result "1-0"]
[TimeControl "90min/40moves + 30min + 30sec/move"]
[WhiteElo "1833"]
[BlackElo "1510"]

1. e4 {[%clk 01:30:19]} {[%emt 00:00:41]} e6 {[%clk 01:30:51]} {[%emt
00:00:09]} 2. d4 {[%clk 01:30:37]} {[%emt 00:00:12]} d5 {[%clk 01:31:15]}
{[%emt 00:00:06]} 3. Nd2 {[%clk 01:30:55]} {[%emt 00:00:11]} c5 {[%clk
01:31:39]} {[%emt 00:00:06]} 4. Ngf3 {[%clk 01:31:01]} {[%emt 00:00:24]} cxd4
{[%clk 01:31:13]} {[%emt 00:00:56]} 5. exd5 {[%clk 01:31:06]} {[%emt 00:00:25]}
Qxd5 {[%clk 01:31:21]} {[%emt 00:00:22]} 6. Bc4 {[%clk 01:31:26]} {[%emt
00:00:11]} Qd8 {[%clk 01:31:36]} {[%emt 00:00:15]} 7. O-O {[%clk 01:31:38]}
{[%emt 00:00:17]} Nc6 {[%clk 01:31:16]} {[%emt 00:00:49]} 8. Nb3 {[%clk
01:31:51]} {[%emt 00:00:18]} Bd7 {[%clk 01:30:41]} {[%emt 00:01:04]} 9. Nbxd4
{[%clk 01:31:36]} {[%emt 00:00:46]} Nf6 {[%clk 01:30:30]} {[%emt 00:00:41]} 10.
Nb5 {[%clk 01:24:56]} {[%emt 00:07:10]} a6 {[%clk 01:25:53]} {[%emt 00:05:07]}
11. Nd6+ {[%clk 01:23:38]} {[%emt 00:01:47]} Bxd6 {[%clk 01:26:03]} {[%emt
00:00:20]} 12. Qxd6 {[%clk 01:24:05]} {[%emt 00:00:02]} Rc8 {[%clk 01:23:31]}
{[%emt 00:03:03]} 13. Bf4 {[%clk 01:08:38]} {[%emt 00:15:56]} Ne7 {[%clk
01:19:58]} {[%emt 00:04:03]} 14. Ne5 {[%clk 01:01:52]} {[%emt 00:07:16]} O-O
{[%clk 00:58:37]} {[%emt 00:21:52]} 15. Qd1 {[%clk 00:39:41]} {[%emt 00:22:41]}
Bc6 {[%clk 00:47:10]} {[%emt 00:11:57]} 16. Nxc6 {[%clk 00:38:30]} {[%emt
00:01:42]} Nxc6 {[%clk 00:44:10]} {[%emt 00:03:30]} 17. Bd3 {[%clk 00:36:12]}
{[%emt 00:02:47]} h6 {[%clk 00:39:45]} {[%emt 00:04:55]} 18. Bg3 {[%clk
00:28:17]} {[%emt 00:08:25]} Nb4 {[%clk 00:32:51]} {[%emt 00:07:24]} 19. Bd6
{[%clk 00:25:33]} {[%emt 00:03:14]} Nxd3 {[%clk 00:31:54]} {[%emt 00:01:26]} 20.
Bxf8 {[%clk 00:25:13]} {[%emt 00:00:51]} Kxf8 {[%clk 00:30:05]} {[%emt
00:02:19]} 21. cxd3 {[%clk 00:24:41]} {[%emt 00:01:01]} Nd5 {[%clk 00:27:24]}
{[%emt 00:03:11]} 22. Qd2 {[%clk 00:24:31]} {[%emt 00:00:41]} Ke7 {[%clk
00:18:51]} {[%emt 00:09:03]} 23. Rac1 {[%clk 00:23:07]} {[%emt 00:01:54]} Rxc1
{[%clk 00:17:33]} {[%emt 00:01:48]} 24. Rxc1 {[%clk 00:22:37]} {[%emt
00:01:00]} Qd7 {[%clk 00:15:32]} {[%emt 00:02:30]} 25. Qa5 {[%clk 00:20:16]}
{[%emt 00:02:52]} Kf6 {[%clk 00:12:13]} {[%emt 00:03:50]} 26. g3 {[%clk
00:19:33]} {[%emt 00:01:12]} Qd6 {[%clk 00:06:42]} {[%emt 00:06:02]} 27. a3
{[%clk 00:14:58]} {[%emt 00:05:04]} Qe5 {[%clk 00:05:45]} {[%emt 00:01:27]} 28.
Qd2 {[%clk 00:13:47]} {[%emt 00:01:41]} Kg6 {[%clk 00:05:13]} {[%emt 00:01:03]}
29. Re1 {[%clk 00:13:59]} {[%emt 00:00:17]} Qf6 {[%clk 00:05:04]} {[%emt
00:00:40]} 30. d4 {[%clk 00:12:24]} {[%emt 00:02:04]} Qf3 {[%clk 00:04:37]}
{[%emt 00:00:57]} 31. Qc2+ {[%clk 00:12:26]} {[%emt 00:00:28]} Kf6 {[%clk
00:04:54]} {[%emt 00:00:14]} 32. Rd1 {[%clk 00:11:23]} {[%emt 00:01:33]} Ne7
{[%emt 00:00:59]} 33. Rd3 {[%clk 00:11:26]} Qh5 {[%clk 00:04:29]} {[%emt
00:00:53]} 34. Qc3 {[%clk 00:09:53]} {[%emt 00:02:03]} Nd5 {[%clk 00:04:51]}
{[%emt 00:00:07]} 35. Rf3+ {[%clk 00:09:06]} {[%emt 00:01:16]} Ke7 {[%clk
00:05:12]} {[%emt 00:00:11]} 36. Qc5+ {[%clk 00:08:19]} {[%emt 00:01:17]} Ke8
{[%clk 00:05:15]} {[%emt 00:00:26]} 37. Qc8+ {[%clk 00:08:38]} {[%emt
00:00:10]} Ke7 {[%clk 00:05:36]} {[%emt 00:00:10]} 38. Qxb7+ {[%clk 00:09:05]}
{[%emt 00:00:03]} Kd8 {[%clk 00:05:43]} {[%emt 00:00:23]} 39. Rxf7 {[%clk
00:08:24]} {[%emt 00:01:11]} Qd1+ {[%clk 00:05:39]} {[%emt 00:00:34]} 40. Kg2
{[%clk 00:08:46]} {[%emt 00:00:08]} Ne3+ {[%clk 00:05:54]} {[%emt 00:00:16]} 41.
fxe3 {[%clk 00:09:06]} {[%emt 00:00:09]} Qe2+ {[%clk 00:06:06]} {[%emt
00:00:18]} 42. Rf2 {[%clk 00:09:23]} {[%emt 00:00:13]} Qxf2+ {[%clk 00:05:42]}
{[%emt 00:00:54]} 43. Kxf2 {[%clk 00:09:46]} {[%emt 00:00:07]} g5 {[%clk
00:06:05]} {[%emt 00:00:07]} 44. Kf3 {[%clk 00:10:04]} {[%emt 00:00:12]} h5
{[%clk 00:06:27]} {[%emt 00:00:08]} 45. Ke4 {[%clk 00:10:31]} {[%emt 00:00:03]}
h4 {[%clk 00:06:43]} {[%emt 00:00:14]} 46. Ke5 {[%clk 00:10:52]} {[%emt
00:00:08]} hxg3 {[%clk 00:07:08]} {[%emt 00:00:05]} 47. Kxe6 {[%clk 00:11:10]}
{[%emt 00:00:11]} gxh2 {[%clk 00:07:30]} {[%emt 00:00:09]} 48. Qd7# {[%clk
00:11:32]} {[%emt 00:00:08]} 1-0

[Event "NJSK 2023 Jeugd C"]
[Site "Almelo, Netherlands"]
[Date "2023.05.02"]
[Round "3.11"]
[White "Thijssen, Freek"]
[Black "Ten Kate, Gustav"]
[Result "0-1"]
[TimeControl "90min/40moves + 30min + 30sec/move"]
[WhiteElo "1644"]
[BlackElo "1815"]

1. e4 {[%clk 01:30:53]} {[%emt 00:00:06]} e6 {[%clk 01:30:34]} {[%emt
00:00:26]} 2. d4 {[%clk 01:30:58]} {[%emt 00:00:26]} d5 {[%clk 01:30:56]}
{[%emt 00:00:07]} 3. exd5 {[%clk 01:30:41]} {[%emt 00:00:48]} exd5 {[%clk
01:30:59]} {[%emt 00:00:26]} 4. Nf3 {[%clk 01:30:07]} {[%emt 00:01:04]} Nf6
{[%clk 01:31:15]} {[%emt 00:00:13]} 5. Bd3 {[%clk 01:30:10]} {[%emt 00:00:27]}
Bd6 {[%clk 01:31:40]} {[%emt 00:00:06]} 6. O-O {[%clk 01:30:23]} {[%emt
00:00:18]} O-O {[%clk 01:32:02]} {[%emt 00:00:06]} 7. Nc3 {[%clk 01:30:07]}
{[%emt 00:00:46]} c6 {[%clk 01:32:15]} {[%emt 00:00:18]} 8. Re1 {[%clk
01:30:02]} {[%emt 00:00:35]} h6 {[%clk 01:32:17]} {[%emt 00:00:27]} 9. h3
{[%clk 01:29:56]} {[%emt 00:00:37]} Qc7 {[%clk 01:30:31]} {[%emt 00:02:16]} 10.
Be3 {[%clk 01:28:53]} {[%emt 00:01:33]} Be6 {[%clk 01:29:20]} {[%emt 00:01:42]}
11. Qd2 {[%clk 01:28:32]} {[%emt 00:00:52]} Nbd7 {[%clk 01:29:14]} {[%emt
00:00:36]} 12. Rad1 {[%clk 01:16:53]} {[%emt 00:12:10]} Rfe8 {[%clk 01:29:28]}
{[%emt 00:00:15]} 13. Qc1 {[%clk 01:13:30]} {[%emt 00:03:54]} a5 {[%clk
01:24:53]} {[%emt 00:05:05]} 14. Ne2 {[%clk 01:11:18]} {[%emt 00:02:42]} a4
{[%clk 01:20:08]} {[%emt 00:05:15]} 15. Nf4 {[%clk 01:01:51]} {[%emt 00:09:57]}
a3 {[%clk 01:11:46]} {[%emt 00:08:52]} 16. b3 {[%clk 01:00:42]} {[%emt
00:01:39]} Ne4 {[%clk 01:08:22]} {[%emt 00:03:54]} 17. Bxe4 {[%clk 00:54:28]}
{[%emt 00:06:43]} dxe4 {[%clk 01:08:40]} {[%emt 00:00:12]} 18. Nxe6 {[%clk
00:54:51]} {[%emt 00:00:07]} Rxe6 {[%clk 01:08:02]} {[%emt 00:01:08]} 19. Nd2
{[%clk 00:47:49]} {[%emt 00:07:33]} Nf6 {[%clk 01:04:00]} {[%emt 00:04:28]} 20.
f3 {[%clk 00:37:19]} {[%emt 00:11:04]} exf3 {[%clk 01:02:20]} {[%emt 00:02:09]}
21. Nxf3 {[%clk 00:36:32]} {[%emt 00:01:18]} Bg3 {[%clk 00:56:34]} {[%emt
00:06:16]} 22. Rf1 {[%clk 00:34:17]} {[%emt 00:02:44]} Nd5 {[%clk 00:51:16]}
{[%emt 00:05:49]} 23. Bd2 {[%clk 00:33:14]} {[%emt 00:01:32]} Re2 {[%clk
00:45:54]} {[%emt 00:05:52]} 24. c4 {[%clk 00:30:51]} {[%emt 00:02:54]} Nf6
{[%clk 00:43:55]} {[%emt 00:02:28]} 25. Bxh6 {[%clk 00:22:22]} {[%emt
00:08:59]} gxh6 {[%clk 00:36:22]} {[%emt 00:08:03]} 26. Qxh6 {[%clk 00:22:45]}
{[%emt 00:00:07]} Ne4 {[%clk 00:25:44]} {[%emt 00:11:09]} 27. Ne5 {[%emt
00:13:26]} Bxe5 {[%clk 00:21:56]} {[%emt 00:04:16]} 28. dxe5 {[%clk 00:10:15]}
{[%emt 00:00:06]} Qb6+ {[%clk 00:21:01]} {[%emt 00:01:25]} 29. Kh2 {[%clk
00:08:45]} {[%emt 00:01:59]} Qe3 {[%clk 00:20:51]} {[%emt 00:00:41]} 30. Qxe3
{[%clk 00:05:21]} {[%emt 00:03:54]} Rxe3 {[%clk 00:21:17]} {[%emt 00:00:04]} 31.
Rd7 {[%clk 00:05:40]} {[%emt 00:00:11]} Rf8 {[%clk 00:21:05]} {[%emt 00:00:42]}
32. Rxb7 {[%clk 00:05:30]} {[%emt 00:00:40]} Re2 {[%clk 00:21:18]} {[%emt
00:00:17]} 33. Ra1 {[%clk 00:05:24]} {[%emt 00:00:35]} Ra8 {[%clk 00:20:03]}
{[%emt 00:01:46]} 34. Rf1 {[%clk 00:04:40]} {[%emt 00:01:14]} Rf2 {[%clk
00:20:02]} {[%emt 00:00:29]} 35. Rxf2 {[%clk 00:04:24]} {[%emt 00:00:47]} Nxf2
{[%clk 00:20:31]} {[%emt 00:00:01]} 36. Rd7 {[%clk 00:04:18]} {[%emt 00:00:36]}
Ne4 {[%clk 00:20:44]} {[%emt 00:00:17]} 37. Rd3 {[%clk 00:04:22]} {[%emt
00:00:25]} Nc5 {[%clk 00:19:48]} {[%emt 00:01:28]} 38. Re3 {[%clk 00:04:16]}
{[%emt 00:00:33]} Rb8 {[%clk 00:19:53]} {[%emt 00:00:27]} 39. b4 {[%clk
00:03:32]} {[%emt 00:01:15]} Rxb4 {[%clk 00:18:50]} {[%emt 00:01:33]} 40. Rxa3
{[%clk 00:03:57]} {[%emt 00:00:05]} Rxc4 {[%clk 00:18:56]} {[%emt 00:00:24]} 41.
Kg3 {[%clk 00:03:38]} {[%emt 00:00:49]} Kg7 {[%clk 00:13:22]} {[%emt 00:06:03]}
42. Kf3 {[%clk 00:02:33]} {[%emt 00:01:36]} Re4 {[%clk 00:10:02]} {[%emt
00:03:50]} 43. Re3 {[%clk 00:02:44]} {[%emt 00:00:18]} Ra4 {[%clk 00:10:15]}
{[%emt 00:00:18]} 44. Rc3 {[%clk 00:02:44]} {[%emt 00:00:30]} Ne6 {[%clk
00:10:34]} {[%emt 00:00:11]} 45. a3 {[%clk 00:02:41]} {[%emt 00:00:33]} c5
{[%clk 00:09:25]} {[%emt 00:01:39]} 46. g4 {[%clk 00:02:49]} {[%emt 00:00:21]}
c4 {[%clk 00:09:24]} {[%emt 00:00:32]} 47. Ke3 {[%clk 00:02:57]} {[%emt
00:00:19]} Nc7 {[%clk 00:08:55]} {[%emt 00:01:02]} 48. Ke4 {[%clk 00:02:58]}
{[%emt 00:00:23]} Nb5 {[%clk 00:09:07]} {[%emt 00:00:23]} 49. Rc1 {[%clk
00:03:10]} {[%emt 00:00:13]} c3+ {[%clk 00:09:18]} {[%emt 00:00:25]} 50. Kd3
{[%clk 00:03:28]} {[%emt 00:00:05]} c2 {[%clk 00:08:05]} {[%emt 00:01:50]} 51.
Kxc2 {[%clk 00:03:24]} {[%emt 00:00:34]} Rxa3 {[%clk 00:08:21]} {[%emt
00:00:13]} 52. Re1 {[%clk 00:02:49]} {[%emt 00:00:56]} Nd4+ {[%clk 00:08:38]}
{[%emt 00:00:22]} 53. Kb2 {[%clk 00:02:45]} {[%emt 00:00:29]} Rb3+ {[%clk
00:08:54]} {[%emt 00:00:18]} 54. Ka2 {[%clk 00:02:58]} {[%emt 00:00:13]} Rxh3
{[%clk 00:09:17]} {[%emt 00:00:12]} 55. Re4 {[%clk 00:03:15]} {[%emt 00:00:12]}
Ne6 {[%clk 00:09:34]} {[%emt 00:00:14]} 56. Kb2 {[%clk 00:03:22]} {[%emt
00:00:21]} Kg6 {[%clk 00:09:41]} {[%emt 00:00:25]} 57. Kc2 {[%clk 00:03:26]}
{[%emt 00:00:26]} Kg5 {[%clk 00:10:04]} {[%emt 00:00:07]} 58. Ra4 {[%clk
00:03:35]} {[%emt 00:00:21]} Rf3 {[%clk 00:10:04]} {[%emt 00:00:30]} 59. Kd2
{[%clk 00:03:21]} {[%emt 00:00:44]} Rf4 {[%clk 00:10:20]} {[%emt 00:00:14]} 60.
Ra7 {[%clk 00:03:03]} {[%emt 00:00:40]} Kxg4 {[%clk 00:10:23]} {[%emt
00:00:35]} 61. Ke3 {[%clk 00:03:17]} {[%emt 00:00:11]} Ng5 {[%clk 00:10:15]}
{[%emt 00:00:42]} 62. Kd3 {[%clk 00:02:01]} {[%emt 00:01:47]} Kf5 {[%clk
00:10:00]} {[%emt 00:00:44]} 63. Ra5 {[%clk 00:01:49]} {[%emt 00:00:43]} Ke6
{[%clk 00:08:47]} {[%emt 00:01:43]} 64. Ke3 {[%clk 00:00:42]} {[%emt 00:01:37]}
Re4+ {[%clk 00:09:02]} {[%emt 00:00:15]} 65. Kf2 {[%clk 00:00:43]} {[%emt
00:00:28]} Rxe5 {[%clk 00:09:21]} {[%emt 00:00:10]} 66. Ra6+ {[%clk 00:01:08]}
{[%emt 00:00:06]} Kf5 {[%clk 00:09:40]} {[%emt 00:00:11]} 67. Kg3 {[%clk
00:01:25]} {[%emt 00:00:13]} f6 {[%clk 00:09:53]} {[%emt 00:00:17]} 68. Rb6
{[%clk 00:01:48]} {[%emt 00:00:07]} Rd5 {[%clk 00:09:06]} {[%emt 00:01:17]} 69.
Ra6 {[%clk 00:02:08]} {[%emt 00:00:10]} Rd3+ {[%clk 00:09:15]} {[%emt
00:00:21]} 70. Kf2 {[%clk 00:02:27]} {[%emt 00:00:09]} Ne4+ {[%clk 00:09:29]}
{[%emt 00:00:18]} 71. Ke2 {[%clk 00:02:47]} {[%emt 00:00:09]} Rd5 {[%clk
00:09:26]} {[%emt 00:02:53]} 72. Ke3 {[%clk 00:02:55]} {[%emt 00:00:18]} Re5
{[%clk 00:09:37]} {[%emt 00:00:23]} 73. Kf3 {[%clk 00:03:13]} {[%emt 00:00:10]}
Re7 {[%clk 00:08:48]} {[%emt 00:01:20]} 74. Rb6 {[%clk 00:03:11]} {[%emt
00:00:32]} Kg5 {[%clk 00:09:04]} {[%emt 00:00:15]} 75. Rb5+ {[%clk 00:03:20]}
{[%emt 00:00:21]} f5 {[%clk 00:09:24]} {[%emt 00:00:10]} 76. Ra5 {[%clk
00:03:44]} {[%emt 00:00:06]} Rb7 {[%clk 00:09:37]} {[%emt 00:00:18]} 77. Re5
{[%clk 00:03:50]} {[%emt 00:00:24]} Rb3+ {[%clk 00:09:52]} {[%emt 00:00:14]} 78.
Ke2 {[%clk 00:04:05]} {[%emt 00:00:13]} Kg4 {[%clk 00:10:11]} {[%emt 00:00:12]}
79. Ra5 {[%clk 00:04:16]} {[%emt 00:00:38]} f4 {[%clk 00:10:24]} {[%emt
00:00:18]} 80. Kf1 {[%clk 00:04:27]} {[%emt 00:00:14]} Kg3 {[%clk 00:10:13]}
{[%emt 00:00:44]} 81. Ra1 {[%clk 00:03:52]} {[%emt 00:01:06]} f3 {[%clk
00:10:22]} {[%emt 00:00:21]} 82. Rd1 {[%clk 00:03:36]} {[%emt 00:00:46]} f2
{[%clk 00:10:17]} {[%emt 00:00:35]} 83. Rc1 {[%clk 00:03:22]} {[%emt 00:00:43]}
Nd2+ {[%clk 00:10:42]} {[%emt 00:00:05]} 84. Ke2 {[%clk 00:03:46]} {[%emt
00:00:07]} f1=Q+ {[%clk 00:11:00]} {[%emt 00:00:12]} 0-1

[Event "NJSK 2023 Jeugd C"]
[Site "Almelo, Netherlands"]
[Date "2023.05.02"]
[Round "3.12"]
[White "Vijver, Jonathan"]
[Black "Van Batenburg, Mees"]
[Result "1/2-1/2"]
[TimeControl "90min/40moves + 30min + 30sec/move"]
[WhiteElo "1781"]
[BlackElo "2054"]

1. e4 {[%emt 00:04:21]} e6 {[%clk 01:26:22]} {[%emt 00:00:24]} 2. Nf3 {[%clk
01:30:57]} {[%emt 00:00:26]} d5 {[%clk 01:26:32]} {[%emt 00:00:20]} 3. Nc3
{[%clk 01:31:05]} {[%emt 00:00:22]} Nf6 {[%clk 01:19:38]} {[%emt 00:07:24]} 4.
e5 {[%clk 01:31:29]} {[%emt 00:00:06]} Nfd7 {[%clk 01:17:48]} {[%emt 00:02:20]}
5. d4 {[%clk 01:31:54]} {[%emt 00:00:05]} c5 {[%clk 01:11:23]} {[%emt
00:06:56]} 6. Bg5 {[%clk 01:32:17]} {[%emt 00:00:07]} Qa5 {[%clk 01:00:28]}
{[%emt 00:11:25]} 7. a3 {[%clk 01:24:26]} {[%emt 00:08:22]} c4 {[%clk
00:51:12]} {[%emt 00:09:46]} 8. Be2 {[%clk 01:23:38]} {[%emt 00:01:16]} Nc6
{[%clk 00:49:57]} {[%emt 00:01:47]} 9. O-O {[%clk 01:23:19]} {[%emt 00:00:46]}
h6 {[%clk 00:43:10]} {[%emt 00:07:19]} 10. Be3 {[%clk 01:22:35]} {[%emt
00:01:11]} Be7 {[%clk 00:42:48]} {[%emt 00:00:54]} 11. Qd2 {[%clk 01:15:43]}
{[%emt 00:07:21]} Nf8 {[%clk 00:38:28]} {[%emt 00:04:51]} 12. h4 {[%clk
01:08:41]} {[%emt 00:07:31]} Bd7 {[%clk 00:26:47]} {[%emt 00:12:13]} 13. Rfb1
{[%clk 00:53:48]} {[%emt 00:15:22]} Nh7 {[%clk 00:24:55]} {[%emt 00:02:23]} 14.
b3 {[%clk 00:52:50]} {[%emt 00:01:27]} b5 {[%emt 00:00:04]} 15. bxc4 {[%clk
00:53:03]} {[%emt 00:00:16]} bxc4 {[%clk 00:25:44]} {[%emt 00:00:08]} 16. g3
{[%clk 00:35:37]} {[%emt 00:17:55]} O-O {[%clk 00:24:59]} {[%emt 00:01:16]} 17.
Kg2 {[%clk 00:32:39]} {[%emt 00:03:28]} Rab8 {[%clk 00:23:58]} {[%emt
00:01:32]} 18. Rh1 {[%clk 00:32:06]} {[%emt 00:01:02]} f5 {[%clk 00:13:55]}
{[%emt 00:10:33]} 1/2-1/2

[Event "NJSK 2023 Jeugd C"]
[Site "Almelo, Netherlands"]
[Date "2023.05.02"]
[Round "3.13"]
[White "Roorda, Cas"]
[Black "De Wit, Evan"]
[Result "1-0"]
[TimeControl "90min/40moves + 30min + 30sec/move"]
[WhiteElo "1769"]
[BlackElo "1563"]

1. e4 {[%clk 01:30:59]} {[%emt 00:00:01]} c6 {[%clk 01:30:55]} {[%emt
00:00:05]} 2. d4 {[%clk 01:31:23]} {[%emt 00:00:06]} d5 {[%clk 01:31:18]}
{[%emt 00:00:06]} 3. e5 {[%clk 01:31:49]} {[%emt 00:00:05]} Bf5 {[%clk
01:31:36]} {[%emt 00:00:12]} 4. h4 {[%clk 01:32:14]} {[%emt 00:00:05]} h5
{[%clk 01:32:01]} {[%emt 00:00:05]} 5. Bd3 {[%clk 01:32:37]} {[%emt 00:00:07]}
Bxd3 {[%clk 01:32:22]} {[%emt 00:00:09]} 6. Qxd3 {[%clk 01:33:03]} {[%emt
00:00:04]} e6 {[%clk 01:32:41]} {[%emt 00:00:10]} 7. Nf3 {[%clk 01:32:41]}
{[%emt 00:00:53]} Qa5+ {[%clk 01:32:56]} {[%emt 00:00:15]} 8. Nbd2 {[%clk
01:33:05]} {[%emt 00:00:06]} Ne7 {[%clk 01:32:55]} {[%emt 00:00:30]} 9. O-O
{[%clk 01:33:03]} {[%emt 00:00:32]} Nf5 {[%clk 01:33:18]} {[%emt 00:00:07]} 10.
Nb3 {[%clk 01:31:06]} {[%emt 00:02:27]} Qa6 {[%clk 01:33:29]} {[%emt 00:00:19]}
11. Qd1 {[%clk 01:31:17]} {[%emt 00:00:19]} c5 {[%clk 01:32:54]} {[%emt
00:01:05]} 12. dxc5 {[%clk 01:18:11]} {[%emt 00:13:37]} Nc6 {[%clk 01:32:29]}
{[%emt 00:00:54]} 13. c3 {[%clk 01:16:45]} {[%emt 00:01:56]} Be7 {[%clk
01:31:13]} {[%emt 00:01:45]} 14. g3 {[%clk 01:14:20]} {[%emt 00:02:56]} O-O-O
{[%clk 01:26:15]} {[%emt 00:05:28]} 15. Re1 {[%clk 01:05:35]} {[%emt 00:09:16]}
d4 {[%clk 01:19:50]} {[%emt 00:06:55]} 16. cxd4 {[%clk 01:02:09]} {[%emt
00:03:57]} Nb4 {[%clk 01:19:54]} {[%emt 00:00:25]} 17. Re2 {[%clk 00:44:04]}
{[%emt 00:18:35]} Rd5 {[%clk 01:17:30]} {[%emt 00:02:54]} 18. Bd2 {[%clk
00:41:19]} {[%emt 00:03:16]} Nc6 {[%clk 01:15:50]} {[%emt 00:02:10]} 19. Bc3
{[%clk 00:39:47]} {[%emt 00:02:01]} Rg8 {[%clk 01:14:55]} {[%emt 00:01:24]} 20.
Qd2 {[%clk 00:37:29]} {[%emt 00:02:50]} Rgd8 {[%clk 01:12:45]} {[%emt
00:02:39]} 21. Qc2 {[%clk 00:34:43]} {[%emt 00:03:16]} g5 {[%clk 01:10:27]}
{[%emt 00:02:48]} 22. hxg5 {[%clk 00:33:20]} {[%emt 00:01:53]} Rg8 {[%clk
01:09:09]} {[%emt 00:01:48]} 23. Qd2 {[%clk 00:31:18]} {[%emt 00:02:32]} Qb5
{[%clk 01:08:39]} {[%emt 00:01:00]} 24. Ree1 {[%clk 00:28:28]} {[%emt
00:03:21]} Rgd8 {[%clk 01:07:03]} {[%emt 00:02:04]} 25. Qc2 {[%clk 00:27:28]}
{[%emt 00:01:32]} Rg8 {[%clk 01:00:14]} {[%emt 00:07:17]} 26. a4 {[%clk
00:26:57]} {[%emt 00:01:03]} Qc4 {[%clk 00:59:17]} {[%emt 00:01:26]} 27. Qc1
{[%clk 00:22:51]} {[%emt 00:04:36]} Bxg5 {[%clk 00:57:20]} {[%emt 00:02:27]} 28.
Nxg5 {[%clk 00:18:37]} {[%emt 00:04:45]} Qxb3 {[%clk 00:57:13]} {[%emt
00:00:37]} 29. Ne4 {[%clk 00:09:35]} {[%emt 00:09:32]} Qc4 {[%clk 00:55:14]}
{[%emt 00:02:28]} 30. Nf6 {[%clk 00:08:42]} {[%emt 00:01:24]} Rdd8 {[%clk
00:55:23]} {[%emt 00:00:21]} 31. Nxg8 {[%clk 00:08:53]} {[%emt 00:00:18]} Rxg8
{[%clk 00:55:46]} {[%emt 00:00:06]} 32. Qf4 {[%clk 00:06:41]} {[%emt 00:02:43]}
h4 {[%clk 00:55:00]} {[%emt 00:01:16]} 33. g4 {[%clk 00:06:05]} {[%emt
00:01:07]} Nfxd4 {[%clk 00:54:58]} {[%emt 00:00:31]} 34. Bxd4 {[%clk 00:06:06]}
{[%emt 00:00:29]} Nxd4 {[%clk 00:55:13]} {[%emt 00:00:15]} 35. Qe4 {[%clk
00:06:05]} {[%emt 00:00:31]} Qb3 {[%clk 00:47:16]} {[%emt 00:08:27]} 36. Re3
{[%clk 00:04:33]} {[%emt 00:02:03]} Qxb2 {[%clk 00:46:35]} {[%emt 00:01:11]} 37.
Rd1 {[%clk 00:03:24]} {[%emt 00:01:38]} Nf5 {[%clk 00:45:56]} {[%emt 00:01:09]}
38. Red3 {[%clk 00:03:13]} {[%emt 00:00:42]} Ne7 {[%clk 00:44:56]} {[%emt
00:01:29]} 39. f3 {[%clk 00:01:35]} {[%emt 00:02:08]} h3 {[%clk 00:44:33]}
{[%emt 00:00:52]} 40. R3d2 {[%clk 00:01:53]} {[%emt 00:00:13]} Qc3 {[%clk
00:43:02]} {[%emt 00:02:01]} 41. Rc2 {[%clk 00:01:02]} {[%emt 00:01:21]} Rxg4+
{[%clk 00:40:32]} {[%emt 00:02:59]} 42. fxg4 {[%clk 00:00:40]} {[%emt
00:00:53]} Qg3+ {[%clk 00:40:36]} {[%emt 00:00:26]} 43. Kh1 {[%clk 00:00:57]}
{[%emt 00:00:12]} Nd5 {[%clk 00:40:16]} {[%emt 00:00:50]} 44. c6 {[%clk
00:00:52]} {[%emt 00:00:36]} b6 {[%clk 00:36:09]} {[%emt 00:04:38]} 45. Rxd5
{[%clk 00:01:12]} {[%emt 00:00:09]} h2 {[%clk 00:34:26]} {[%emt 00:02:13]} 46.
Rd8+ {[%clk 00:01:02]} {[%emt 00:00:40]} Kc7 {[%clk 00:34:01]} {[%emt
00:00:55]} 47. Rd7+ {[%clk 00:01:15]} {[%emt 00:00:17]} Kc8 {[%clk 00:34:23]}
{[%emt 00:00:09]} 48. Rd1 {[%clk 00:01:19]} {[%emt 00:00:25]} Qb3 {[%clk
00:34:19]} {[%emt 00:00:33]} 49. c7 {[%emt 00:01:05]} 1-0

[Event "NJSK 2023 Jeugd C"]
[Site "Almelo, Netherlands"]
[Date "2023.05.02"]
[Round "3.14"]
[White "Verwer, Oscar"]
[Black "Rooijakkers, Liam"]
[Result "1/2-1/2"]
[TimeControl "90min/40moves + 30min + 30sec/move"]
[WhiteElo "1549"]
[BlackElo "1322"]

1. e4 {[%clk 01:30:58]} {[%emt 00:00:01]} d6 {[%clk 01:30:50]} {[%emt
00:00:11]} 2. d4 {[%clk 01:31:22]} {[%emt 00:00:05]} Nf6 {[%clk 01:30:59]}
{[%emt 00:00:21]} 3. Nc3 {[%clk 01:31:46]} {[%emt 00:00:06]} Nbd7 {[%clk
01:31:07]} {[%emt 00:00:23]} 4. f4 {[%clk 01:31:46]} {[%emt 00:00:30]} e5
{[%clk 01:31:14]} {[%emt 00:00:24]} 5. Nf3 {[%clk 01:31:26]} {[%emt 00:00:49]}
exd4 {[%clk 01:31:17]} {[%emt 00:00:28]} 6. Qxd4 {[%clk 01:29:08]} {[%emt
00:02:48]} c6 {[%clk 01:30:49]} {[%emt 00:00:57]} 7. e5 {[%clk 01:23:53]}
{[%emt 00:05:45]} Qe7 {[%clk 01:27:54]} {[%emt 00:03:25]} 8. Ne4 {[%clk
01:05:57]} {[%emt 00:18:26]} Nxe4 {[%clk 01:27:11]} {[%emt 00:01:13]} 9. Qxe4
{[%clk 01:06:16]} {[%emt 00:00:11]} dxe5 {[%clk 01:22:40]} {[%emt 00:05:03]} 10.
Bd3 {[%clk 00:47:18]} {[%emt 00:19:27]} exf4 {[%clk 01:14:23]} {[%emt
00:08:47]} 11. Qxe7+ {[%clk 00:44:05]} {[%emt 00:03:44]} Bxe7 {[%clk 01:14:50]}
{[%emt 00:00:02]} 12. Bxf4 {[%clk 00:44:25]} {[%emt 00:00:10]} Nc5 {[%clk
01:14:40]} {[%emt 00:00:40]} 13. O-O-O {[%clk 00:42:49]} {[%emt 00:02:06]} Bg4
{[%clk 01:11:33]} {[%emt 00:03:38]} 14. Rhe1 {[%clk 00:38:48]} {[%emt
00:04:31]} Ne6 {[%clk 01:10:01]} {[%emt 00:02:00]} 15. Bg3 {[%clk 00:33:00]}
{[%emt 00:06:19]} Rd8 {[%clk 01:05:29]} {[%emt 00:05:03]} 16. Bf2 {[%clk
00:19:48]} {[%emt 00:13:41]} b6 {[%clk 00:48:53]} {[%emt 00:17:07]} 17. Be4
{[%clk 00:19:05]} {[%emt 00:01:11]} Rc8 {[%clk 00:48:11]} {[%emt 00:01:14]} 18.
h3 {[%clk 00:16:27]} {[%emt 00:03:07]} Bxf3 {[%clk 00:46:31]} {[%emt 00:02:10]}
19. Bxf3 {[%clk 00:16:53]} {[%emt 00:00:05]} c5 {[%clk 00:46:09]} {[%emt
00:00:52]} 20. Bg4 {[%clk 00:13:02]} {[%emt 00:04:20]} Rc6 {[%clk 00:44:30]}
{[%emt 00:02:10]} 1/2-1/2